[Event "Late-Titled-Tuesday-Blitz-February-13-2024"]
[Site "Chess.com"]
[Date "2024.02.13"]
[Round "5"]
[White "Hrant_ChessMood"]
[Black "ChessSkool"]
[Result "1-0"]
[WhiteElo "2950"]
[BlackElo "2715"]
[TimeControl "180+1"]
[EndTime "14:57:34 PST"]
[Termination "Hrant_ChessMood won on time"]

1. Nf3 {[%clk 0:02:41.9]} 1... d5 {[%clk 0:03:00]} 2. e3 {[%clk 0:02:40.2]} 2...
Nf6 {[%clk 0:03:00.2]} 3. c4 {[%clk 0:02:39]} 3... e6 {[%clk 0:03:00.4]} 4. Nc3
{[%clk 0:02:37.6]} 4... a6 {[%clk 0:02:59.8]} 5. b3 {[%clk 0:02:37.8]} 5... b6
{[%clk 0:02:59.9]} 6. Bb2 {[%clk 0:02:38.1]} 6... Bb7 {[%clk 0:03:00.5]} 7. g3
{[%clk 0:02:27.9]} 7... Nbd7 {[%clk 0:02:44.3]} 8. cxd5 {[%clk 0:02:16.7]} 8...
exd5 {[%clk 0:02:45.2]} 9. Bg2 {[%clk 0:02:14]} 9... Bd6 {[%clk 0:02:45.3]} 10.
O-O {[%clk 0:02:14.1]} 10... O-O {[%clk 0:02:45.5]} 11. Ne2 {[%clk 0:02:09.6]}
11... Re8 {[%clk 0:02:41.4]} 12. Qc2 {[%clk 0:02:08.6]} 12... a5 {[%clk
0:02:18.3]} 13. Nf4 {[%clk 0:02:04.7]} 13... Nc5 {[%clk 0:02:01.6]} 14. Nd4
{[%clk 0:01:59.1]} 14... Bxf4 {[%clk 0:01:27.3]} 15. exf4 {[%clk 0:01:58.9]}
15... Ba6 {[%clk 0:01:25.5]} 16. Rfe1 {[%clk 0:01:59.2]} 16... Rxe1+ {[%clk
0:01:06]} 17. Rxe1 {[%clk 0:01:58.6]} 17... Nd3 {[%clk 0:00:51.3]} 18. Re3
{[%clk 0:01:58.3]} 18... Nxb2 {[%clk 0:00:48.8]} 19. Qxb2 {[%clk 0:01:52.9]}
19... Qd7 {[%clk 0:00:44.8]} 20. Re5 {[%clk 0:01:45.2]} 20... Bb7 {[%clk
0:00:28.3]} 21. Nf5 {[%clk 0:01:40.8]} 21... Re8 {[%clk 0:00:24.5]} 22. Bh3
{[%clk 0:01:40.8]} 22... Qd8 {[%clk 0:00:21.6]} 23. Bg2 {[%clk 0:01:18.1]} 23...
Bc8 {[%clk 0:00:19.3]} 24. Nd4 {[%clk 0:00:59.9]} 24... c5 {[%clk 0:00:19.5]}
25. Nc6 {[%clk 0:00:31.2]} 25... Qd6 {[%clk 0:00:18.7]} 26. Bxd5 {[%clk
0:00:19.5]} 26... Bd7 {[%clk 0:00:10.9]} 27. Rxe8+ {[%clk 0:00:16.5]} 27... Bxe8
{[%clk 0:00:04.4]} 28. Bxf7+ {[%clk 0:00:06.1]} 28... Bxf7 {[%clk 0:00:03.5]}
29. Ne5 {[%clk 0:00:07]} 29... Bd5 {[%clk 0:00:03.6]} 30. d4 {[%clk 0:00:07.2]}
30... Bb7 {[%clk 0:00:03.5]} 31. Qe2 {[%clk 0:00:02.9]} 31... Qxd4 {[%clk
0:00:02.8]} 32. Nd3 {[%clk 0:00:01.5]} 32... Qd5 {[%clk 0:00:03.1]} 33. f3
{[%clk 0:00:01.5]} 33... h5 {[%clk 0:00:03]} 34. Ne5 {[%clk 0:00:01.4]} 34...
Qd4+ {[%clk 0:00:02.4]} 35. Kg2 {[%clk 0:00:01.9]} 35... Qd5 {[%clk 0:00:01.5]}
36. Qc2 {[%clk 0:00:02.1]} 36... Qd4 {[%clk 0:00:01.5]} 37. Qf5 {[%clk
0:00:02.1]} 37... Qd2+ {[%clk 0:00:01.6]} 38. Kh3 {[%clk 0:00:02.3]} 38... Qd5
{[%clk 0:00:02.1]} 39. Kg2 {[%clk 0:00:01.5]} 39... Qd2+ {[%clk 0:00:02]} 40.
Kh3 {[%clk 0:00:01.7]} 40... Qd8 {[%clk 0:00:02.9]} 41. Qg6 {[%clk 0:00:02]}
41... Bc8+ {[%clk 0:00:02.7]} 42. g4 {[%clk 0:00:01.7]} 42... Qe8 {[%clk
0:00:03.4]} 43. Kg3 {[%clk 0:00:01.7]} 43... Qxg6 {[%clk 0:00:03.1]} 44. Nxg6
{[%clk 0:00:02.6]} 44... Kf7 {[%clk 0:00:03.1]} 45. Ne5+ {[%clk 0:00:02.9]}
45... Ke6 {[%clk 0:00:03.1]} 46. h3 {[%clk 0:00:03.2]} 46... hxg4 {[%clk
0:00:03.1]} 47. fxg4 {[%clk 0:00:02.8]} 47... Nd5 {[%clk 0:00:03.6]} 48. Nc4
{[%clk 0:00:03.1]} 48... Ba6 {[%clk 0:00:03.5]} 49. f5+ {[%clk 0:00:04]} 49...
Ke7 {[%clk 0:00:03.3]} 50. Ne5 {[%clk 0:00:04.1]} 50... Kd6 {[%clk 0:00:03.1]}
51. Nf7+ {[%clk 0:00:03.7]} 51... Ke7 {[%clk 0:00:03.3]} 52. Ng5 {[%clk
0:00:04.6]} 52... Bc8 {[%clk 0:00:03.1]} 53. Ne4 {[%clk 0:00:04.5]} 53... Nb4
{[%clk 0:00:03.1]} 54. a3 {[%clk 0:00:04.3]} 54... Nd3 {[%clk 0:00:03.6]} 55. h4
{[%clk 0:00:04.3]} 55... Bb7 {[%clk 0:00:03.9]} 56. Nc3 {[%clk 0:00:04.3]} 56...
Nc1 {[%clk 0:00:03.3]} 57. Na4 {[%clk 0:00:02.7]} 57... Nxb3 {[%clk 0:00:02.6]}
58. Nxb6 {[%clk 0:00:03.3]} 58... Ba6 {[%clk 0:00:02.3]} 59. Kf4 {[%clk
0:00:03.7]} 59... c4 {[%clk 0:00:02.8]} 60. h5 {[%clk 0:00:03.5]} 60... c3
{[%clk 0:00:03.2]} 61. Nd5+ {[%clk 0:00:03.9]} 61... Kd6 {[%clk 0:00:02.6]} 62.
Nxc3 {[%clk 0:00:04.8]} 62... Nc5 {[%clk 0:00:02.2]} 63. Kg5 {[%clk 0:00:05.1]}
63... Nd7 {[%clk 0:00:01.5]} 64. Ne4+ {[%clk 0:00:04.4]} 64... Ke7 {[%clk
0:00:02]} 65. Kf4 {[%clk 0:00:04.3]} 65... Bb7 {[%clk 0:00:02]} 66. Nc3 {[%clk
0:00:03.9]} 66... Bc6 {[%clk 0:00:02.3]} 67. g5 {[%clk 0:00:04.2]} 67... Kf7
{[%clk 0:00:02.5]} 68. Ne2 {[%clk 0:00:04.7]} 68... Nc5 {[%clk 0:00:02.4]} 69.
Nd4 {[%clk 0:00:04.9]} 69... Bd7 {[%clk 0:00:03.1]} 70. Ke5 {[%clk 0:00:04.8]}
70... Nd3+ {[%clk 0:00:03]} 71. Kd6 {[%clk 0:00:04.7]} 71... Bc8 {[%clk
0:00:03.3]} 72. h6 {[%clk 0:00:02.6]} 72... gxh6 {[%clk 0:00:03.5]} 73. gxh6
{[%clk 0:00:03.5]} 73... Ne1 {[%clk 0:00:02.4]} 74. Ne6 {[%clk 0:00:03.7]} 74...
Nf3 {[%clk 0:00:02]} 75. h7 {[%clk 0:00:04.1]} 1-0

[Event "Late-Titled-Tuesday-Blitz-February-13-2024"]
[Site "Chess.com"]
[Date "2024.02.13"]
[Round "5"]
[White "GoltsevDmitry2000"]
[Black "Hikaru"]
[Result "1/2-1/2"]
[WhiteElo "2783"]
[BlackElo "3312"]
[TimeControl "180+1"]
[EndTime "14:58:40 PST"]
[Termination "Game drawn by 50-move rule"]

1. e4 {[%clk 0:02:59.5]} 1... d5 {[%clk 0:02:59.7]} 2. exd5 {[%clk 0:02:59.3]}
2... Qxd5 {[%clk 0:03:00.6]} 3. Nf3 {[%clk 0:02:57.1]} 3... Bg4 {[%clk
0:03:00.1]} 4. Be2 {[%clk 0:02:57.5]} 4... e6 {[%clk 0:03:00.3]} 5. h3 {[%clk
0:02:57.4]} 5... Bh5 {[%clk 0:03:00.3]} 6. Nc3 {[%clk 0:02:57.3]} 6... Qd8
{[%clk 0:02:59.8]} 7. d4 {[%clk 0:02:57.6]} 7... c6 {[%clk 0:02:58.8]} 8. Bf4
{[%clk 0:02:54.4]} 8... Bd6 {[%clk 0:02:58.4]} 9. Bxd6 {[%clk 0:02:53.8]} 9...
Qxd6 {[%clk 0:02:58.4]} 10. Ne4 {[%clk 0:02:53.7]} 10... Qc7 {[%clk 0:02:55.7]}
11. Ne5 {[%clk 0:02:51.2]} 11... Bg6 {[%clk 0:02:55.8]} 12. Nxg6 {[%clk
0:02:44.1]} 12... hxg6 {[%clk 0:02:55.9]} 13. c3 {[%clk 0:02:42.1]} 13... Nd7
{[%clk 0:02:56]} 14. Qb3 {[%clk 0:02:40.8]} 14... O-O-O {[%clk 0:02:52.3]} 15.
a4 {[%clk 0:02:36.6]} 15... Ngf6 {[%clk 0:02:52.1]} 16. Ng5 {[%clk 0:02:28.9]}
16... Rhf8 {[%clk 0:02:51.3]} 17. a5 {[%clk 0:02:29.3]} 17... Nd5 {[%clk
0:02:39.3]} 18. a6 {[%clk 0:02:25.9]} 18... b6 {[%clk 0:02:39.4]} 19. Bf3 {[%clk
0:02:22.4]} 19... f6 {[%clk 0:02:11.4]} 20. Ne4 {[%clk 0:01:53.8]} 20... e5
{[%clk 0:02:07.4]} 21. O-O {[%clk 0:01:47.1]} 21... Rde8 {[%clk 0:02:00.9]} 22.
c4 {[%clk 0:01:45.4]} 22... Nf4 {[%clk 0:02:01.2]} 23. c5 {[%clk 0:01:43.9]}
23... Kb8 {[%clk 0:02:01.2]} 24. Nd6 {[%clk 0:01:41.3]} 24... Re7 {[%clk
0:01:59.9]} 25. Rfc1 {[%clk 0:01:38.1]} 25... Ne6 {[%clk 0:01:27.6]} 26. cxb6
{[%clk 0:00:59.7]} 26... Qxb6 {[%clk 0:01:28.5]} 27. Qa3 {[%clk 0:00:38.2]}
27... Nxd4 {[%clk 0:01:26.8]} 28. Nc8 {[%clk 0:00:36.8]} 28... Rxc8 {[%clk
0:01:08.9]} 29. Qxe7 {[%clk 0:00:37]} 29... Qd8 {[%clk 0:01:09.7]} 30. Qxg7
{[%clk 0:00:26.6]} 30... g5 {[%clk 0:01:07.7]} 31. Ra3 {[%clk 0:00:24.2]} 31...
Rc7 {[%clk 0:01:06.7]} 32. Rac3 {[%clk 0:00:18.5]} 32... Qc8 {[%clk 0:00:54.4]}
33. Qe7 {[%clk 0:00:13.3]} 33... Qf8 {[%clk 0:00:54.7]} 34. Qxf8+ {[%clk
0:00:13.1]} 34... Nxf8 {[%clk 0:00:55.6]} 35. Kf1 {[%clk 0:00:12.6]} 35... Re7
{[%clk 0:00:46.7]} 36. Bxc6 {[%clk 0:00:12.1]} 36... Kc7 {[%clk 0:00:47.6]} 37.
Bb7+ {[%clk 0:00:07.9]} 37... Kd6 {[%clk 0:00:42.3]} 38. Rc8 {[%clk 0:00:06.6]}
38... Nfe6 {[%clk 0:00:42.9]} 39. Ra8 {[%clk 0:00:06.9]} 39... Nb5 {[%clk
0:00:43.4]} 40. Rc6+ {[%clk 0:00:05.9]} 40... Kd7 {[%clk 0:00:43.9]} 41. b4
{[%clk 0:00:04]} 41... g4 {[%clk 0:00:41.5]} 42. hxg4 {[%clk 0:00:03.7]} 42...
Rh7 {[%clk 0:00:42.2]} 43. g3 {[%clk 0:00:03.3]} 43... e4 {[%clk 0:00:39.6]} 44.
Kg2 {[%clk 0:00:03.6]} 44... Rg7 {[%clk 0:00:36.7]} 45. Rc1 {[%clk 0:00:03.7]}
45... Nec7 {[%clk 0:00:33]} 46. Rc6 {[%clk 0:00:03]} 46... Nxa8 {[%clk
0:00:32.7]} 47. Bxa8 {[%clk 0:00:03.4]} 47... Nd6 {[%clk 0:00:31.9]} 48. Rc5
{[%clk 0:00:02.6]} 48... Rxg4 {[%clk 0:00:31.2]} 49. b5 {[%clk 0:00:02.2]} 49...
Rg8 {[%clk 0:00:28.5]} 50. Bc6+ {[%clk 0:00:01.9]} 50... Ke7 {[%clk 0:00:26.7]}
51. Rc2 {[%clk 0:00:02.5]} 51... Rb8 {[%clk 0:00:26.5]} 52. Re2 {[%clk
0:00:02.4]} 52... f5 {[%clk 0:00:26]} 53. f3 {[%clk 0:00:03.1]} 53... Kf6 {[%clk
0:00:22.5]} 54. fxe4 {[%clk 0:00:03]} 54... fxe4 {[%clk 0:00:23.4]} 55. Bxe4
{[%clk 0:00:02.5]} 55... Rxb5 {[%clk 0:00:23.9]} 56. Bc6 {[%clk 0:00:02.7]}
56... Rb3 {[%clk 0:00:23.5]} 57. Bd5 {[%clk 0:00:02.9]} 57... Rb6 {[%clk
0:00:22.6]} 58. Bb7 {[%clk 0:00:01.6]} 58... Nf5 {[%clk 0:00:22]} 59. Rf2 {[%clk
0:00:02.1]} 59... Kg5 {[%clk 0:00:21.9]} 60. g4 {[%clk 0:00:02.4]} 60... Ne3+
{[%clk 0:00:21.6]} 61. Kf3 {[%clk 0:00:02.8]} 61... Rb3 {[%clk 0:00:22.2]} 62.
Re2 {[%clk 0:00:02.7]} 62... Nxg4+ {[%clk 0:00:21.5]} 63. Ke4 {[%clk 0:00:02.7]}
63... Kf6 {[%clk 0:00:21.2]} 64. Kd5 {[%clk 0:00:02.8]} 64... Ne3+ {[%clk
0:00:19.7]} 65. Kc5 {[%clk 0:00:02.7]} 65... Ke5 {[%clk 0:00:18.9]} 66. Rd2
{[%clk 0:00:02.8]} 66... Rc3+ {[%clk 0:00:18.8]} 67. Kb4 {[%clk 0:00:03]} 67...
Rc7 {[%clk 0:00:18.2]} 68. Rd8 {[%clk 0:00:03.4]} 68... Nc2+ {[%clk 0:00:18.8]}
69. Kb3 {[%clk 0:00:03.3]} 69... Nd4+ {[%clk 0:00:19.7]} 70. Kb4 {[%clk
0:00:04.2]} 70... Nc2+ {[%clk 0:00:14.8]} 71. Kb3 {[%clk 0:00:04.3]} 71... Nd4+
{[%clk 0:00:12.8]} 72. Kb4 {[%clk 0:00:04.8]} 72... Ne6 {[%clk 0:00:13.7]} 73.
Ra8 {[%clk 0:00:04]} 73... Rc1 {[%clk 0:00:13.8]} 74. Rxa7 {[%clk 0:00:04]}
74... Rb1+ {[%clk 0:00:14.4]} 75. Kc3 {[%clk 0:00:04.4]} 75... Nc7 {[%clk
0:00:13.7]} 76. Kc2 {[%clk 0:00:03.4]} 76... Rb6 {[%clk 0:00:13.1]} 77. Bc8
{[%clk 0:00:03.7]} 77... Kd6 {[%clk 0:00:12.6]} 78. Rb7 {[%clk 0:00:01.8]} 78...
Rc6+ {[%clk 0:00:13.2]} 79. Kd2 {[%clk 0:00:01.8]} 79... Nxa6 {[%clk 0:00:14.1]}
80. Rb3 {[%clk 0:00:02.1]} 80... Rxc8 {[%clk 0:00:13.5]} 81. Rb6+ {[%clk
0:00:02.5]} 81... Kc5 {[%clk 0:00:12.3]} 82. Rxa6 {[%clk 0:00:03]} 82... Rg8
{[%clk 0:00:13]} 83. Kc3 {[%clk 0:00:03.3]} 83... Rg3+ {[%clk 0:00:13.3]} 84.
Kd2 {[%clk 0:00:03.9]} 84... Kb5 {[%clk 0:00:14.2]} 85. Re6 {[%clk 0:00:04]}
85... Kc4 {[%clk 0:00:14.4]} 86. Re3 {[%clk 0:00:04.4]} 86... Rg2+ {[%clk
0:00:15]} 87. Re2 {[%clk 0:00:04.9]} 87... Rg7 {[%clk 0:00:15.9]} 88. Re3 {[%clk
0:00:05.4]} 88... Kd4 {[%clk 0:00:16.5]} 89. Rd3+ {[%clk 0:00:05.9]} 89... Kc4
{[%clk 0:00:17.2]} 90. Rc3+ {[%clk 0:00:06.3]} 90... Kb4 {[%clk 0:00:17.7]} 91.
Rd3 {[%clk 0:00:06.7]} 91... Rg2+ {[%clk 0:00:18.4]} 92. Ke3 {[%clk 0:00:06.9]}
92... Kc5 {[%clk 0:00:19.3]} 93. Rd2 {[%clk 0:00:07.1]} 93... Rg3+ {[%clk
0:00:19.8]} 94. Kf4 {[%clk 0:00:07.5]} 94... Rg7 {[%clk 0:00:20.7]} 95. Re2
{[%clk 0:00:08]} 95... Rf7+ {[%clk 0:00:21.2]} 96. Kg5 {[%clk 0:00:08.3]} 96...
Kd4 {[%clk 0:00:22.1]} 97. Kg6 {[%clk 0:00:08.7]} 97... Ra7 {[%clk 0:00:22.8]}
98. Re6 {[%clk 0:00:09]} 98... Kd5 {[%clk 0:00:23.5]} 99. Re1 {[%clk 0:00:09.4]}
99... Ra2 {[%clk 0:00:23.6]} 100. Kf5 {[%clk 0:00:09.7]} 100... Rg2 {[%clk
0:00:24.3]} 101. Kf4 {[%clk 0:00:09.7]} 101... Kc4 {[%clk 0:00:25.2]} 102. Kf3
{[%clk 0:00:09.9]} 102... Rg7 {[%clk 0:00:26.1]} 103. Re4+ {[%clk 0:00:10.3]}
103... Kd3 {[%clk 0:00:26.4]} 104. Re3+ {[%clk 0:00:10.9]} 104... Kd2 {[%clk
0:00:27]} 105. Re8 {[%clk 0:00:11.5]} 105... Kd1 {[%clk 0:00:27.9]} 106. Rd8+
{[%clk 0:00:11.8]} 106... Ke1 {[%clk 0:00:27.8]} 107. Re8+ {[%clk 0:00:11.7]}
107... Kf1 {[%clk 0:00:28.1]} 108. Ra8 {[%clk 0:00:12.4]} 108... Rf7+ {[%clk
0:00:28.6]} 109. Ke3 {[%clk 0:00:12.5]} 109... Re7+ {[%clk 0:00:29.2]} 110. Kf3
{[%clk 0:00:12.4]} 110... Ke1 {[%clk 0:00:28.7]} 111. Ra1+ {[%clk 0:00:12]}
111... Kd2 {[%clk 0:00:28.8]} 112. Ra2+ {[%clk 0:00:12.9]} 112... Kd3 {[%clk
0:00:29.3]} 113. Ra3+ {[%clk 0:00:13.3]} 113... Kc4 {[%clk 0:00:29.9]} 114. Ra4+
{[%clk 0:00:13.9]} 114... Kd5 {[%clk 0:00:30]} 115. Ra5+ {[%clk 0:00:14.1]}
115... Kd4 {[%clk 0:00:30.6]} 116. Ra4+ {[%clk 0:00:14.6]} 116... Kc3 {[%clk
0:00:31.1]} 117. Ra3+ {[%clk 0:00:14.8]} 117... Kb4 {[%clk 0:00:31.6]} 118. Re3
{[%clk 0:00:15]} 118... Rf7+ {[%clk 0:00:32.5]} 119. Ke2 {[%clk 0:00:15.1]}
119... Rh7 {[%clk 0:00:33.4]} 120. Rf3 {[%clk 0:00:15.4]} 120... Kc4 {[%clk
0:00:33.9]} 121. Rf4+ {[%clk 0:00:15.6]} 121... Kc3 {[%clk 0:00:34.6]} 122. Rf3+
{[%clk 0:00:16]} 122... Kc2 {[%clk 0:00:35.5]} 123. Rf4 {[%clk 0:00:16.5]}
123... Re7+ {[%clk 0:00:35.4]} 124. Kf3 {[%clk 0:00:16.9]} 124... Kd3 {[%clk
0:00:36.3]} 125. Rf8 {[%clk 0:00:16.9]} 125... Rd7 {[%clk 0:00:36.7]} 126. Rf5
{[%clk 0:00:16.7]} 126... Rd4 {[%clk 0:00:36.8]} 127. Rf4 {[%clk 0:00:16.9]}
127... Rd6 {[%clk 0:00:37.4]} 128. Rf5 {[%clk 0:00:17]} 128... Kd4 {[%clk
0:00:37.7]} 129. Rf8 {[%clk 0:00:17.3]} 129... Ke5 {[%clk 0:00:38.6]} 130. Re8+
{[%clk 0:00:17.3]} 130... Kf5 {[%clk 0:00:39.2]} 131. Ra8 {[%clk 0:00:17.4]}
131... Rd3+ {[%clk 0:00:39.4]} 132. Ke2 {[%clk 0:00:17.2]} 1/2-1/2

[Event "Late-Titled-Tuesday-Blitz-February-13-2024"]
[Site "Chess.com"]
[Date "2024.02.13"]
[Round "6"]
[White "MolecularChemist"]
[Black "kids2010"]
[Result "0-1"]
[WhiteElo "2894"]
[BlackElo "2776"]
[TimeControl "180+1"]
[EndTime "15:01:38 PST"]
[Termination "kids2010 won by resignation"]

1. Nf3 {[%clk 0:03:00.9]} 1... Nf6 {[%clk 0:02:59.5]} 2. c4 {[%clk 0:02:58.3]}
2... c5 {[%clk 0:02:58.3]} 3. Nc3 {[%clk 0:02:57.4]} 3... Nc6 {[%clk 0:02:58.3]}
4. b3 {[%clk 0:02:56.5]} 4... g6 {[%clk 0:02:56.7]} 5. Bb2 {[%clk 0:02:56.3]}
5... Bg7 {[%clk 0:02:56.7]} 6. d4 {[%clk 0:02:57]} 6... cxd4 {[%clk 0:02:56.7]}
7. Nxd4 {[%clk 0:02:57.7]} 7... O-O {[%clk 0:02:55.7]} 8. e3 {[%clk 0:02:56.6]}
8... d5 {[%clk 0:02:49.2]} 9. cxd5 {[%clk 0:02:41.2]} 9... Nxd4 {[%clk
0:02:49.3]} 10. Qxd4 {[%clk 0:02:37.8]} 10... Nxd5 {[%clk 0:02:46.4]} 11. Qd2
{[%clk 0:02:19.2]} 11... Nxc3 {[%clk 0:02:39.9]} 12. Bxc3 {[%clk 0:02:18.1]}
12... Qxd2+ {[%clk 0:02:38.6]} 13. Kxd2 {[%clk 0:02:19]} 13... Rd8+ {[%clk
0:02:39]} 14. Kc2 {[%clk 0:02:10]} 14... Bf5+ {[%clk 0:02:39.3]} 15. Kb2 {[%clk
0:02:09]} 15... Rd2+ {[%clk 0:02:39]} 0-1

[Event "Late-Titled-Tuesday-Blitz-February-13-2024"]
[Site "Chess.com"]
[Date "2024.02.13"]
[Round "6"]
[White "mishanick"]
[Black "PolandHussars"]
[Result "1-0"]
[WhiteElo "2963"]
[BlackElo "2624"]
[TimeControl "180+1"]
[EndTime "15:01:39 PST"]
[Termination "mishanick won by resignation"]

1. d4 {[%clk 0:02:59.3]} 1... Nf6 {[%clk 0:02:58.8]} 2. c4 {[%clk 0:02:59.9]}
2... c5 {[%clk 0:02:59.2]} 3. d5 {[%clk 0:03:00.2]} 3... e6 {[%clk 0:02:59.8]}
4. Nc3 {[%clk 0:03:00.3]} 4... exd5 {[%clk 0:03:00.1]} 5. cxd5 {[%clk
0:03:01.2]} 5... d6 {[%clk 0:03:00.8]} 6. e4 {[%clk 0:03:01.4]} 6... g6 {[%clk
0:03:01.4]} 7. Be2 {[%clk 0:03:01.3]} 7... Bg7 {[%clk 0:03:01.5]} 8. Be3 {[%clk
0:03:02]} 8... O-O {[%clk 0:03:01.7]} 9. Nf3 {[%clk 0:03:02.7]} 9... Re8 {[%clk
0:03:02.2]} 10. Nd2 {[%clk 0:03:03.3]} 10... Nbd7 {[%clk 0:03:02.4]} 11. O-O
{[%clk 0:03:03.1]} 11... a6 {[%clk 0:03:02.4]} 12. a4 {[%clk 0:03:02.8]} 12...
Qc7 {[%clk 0:02:57.7]} 13. h3 {[%clk 0:03:02.4]} 13... b6 {[%clk 0:02:52.7]} 14.
Bf4 {[%clk 0:03:02.8]} 14... Ne5 {[%clk 0:02:48.3]} 15. Bh2 {[%clk 0:03:01.9]}
15... g5 {[%clk 0:02:48.3]} 16. f4 {[%clk 0:03:01.7]} 16... gxf4 {[%clk
0:02:48.7]} 17. Bxf4 {[%clk 0:03:02.4]} 17... Bd7 {[%clk 0:02:40.6]} 18. Qe1
{[%clk 0:03:02.2]} 18... Ng6 {[%clk 0:02:39.5]} 19. Bg5 {[%clk 0:02:56.2]} 19...
Qd8 {[%clk 0:02:19.6]} 20. Qf2 {[%clk 0:02:54.9]} 20... Nxe4 {[%clk 0:02:20]}
21. Qxf7+ {[%clk 0:02:54.7]} 21... Kh8 {[%clk 0:02:20.1]} 22. Bxd8 {[%clk
0:02:55.4]} 1-0

[Event "Late-Titled-Tuesday-Blitz-February-13-2024"]
[Site "Chess.com"]
[Date "2024.02.13"]
[Round "6"]
[White "2L8IWUN"]
[Black "FredddieCroderg"]
[Result "0-1"]
[WhiteElo "1979"]
[BlackElo "2282"]
[TimeControl "180+1"]
[EndTime "15:02:32 PST"]
[Termination "FredddieCroderg won by checkmate"]

1. d4 {[%clk 0:03:00.9]} 1... d5 {[%clk 0:02:58.7]} 2. Bf4 {[%clk 0:02:58.9]}
2... e6 {[%clk 0:02:58]} 3. e3 {[%clk 0:02:57.8]} 3... c5 {[%clk 0:02:56.6]} 4.
c3 {[%clk 0:02:56.4]} 4... Nf6 {[%clk 0:02:55.8]} 5. Nd2 {[%clk 0:02:53]} 5...
Nc6 {[%clk 0:02:55]} 6. Ngf3 {[%clk 0:02:51.6]} 6... Bd6 {[%clk 0:02:54.4]} 7.
Bg3 {[%clk 0:02:47.4]} 7... O-O {[%clk 0:02:53.1]} 8. Bd3 {[%clk 0:02:30.2]}
8... b6 {[%clk 0:02:52.7]} 9. Qe2 {[%clk 0:02:22.6]} 9... Bb7 {[%clk 0:02:52.4]}
10. Rd1 {[%clk 0:02:22.3]} 10... Rc8 {[%clk 0:02:49.8]} 11. e4 {[%clk 0:02:13]}
11... dxe4 {[%clk 0:02:48.3]} 12. Nxe4 {[%clk 0:02:12.3]} 12... Nxe4 {[%clk
0:02:45.5]} 13. Bxe4 {[%clk 0:01:56.9]} 13... Qc7 {[%clk 0:02:37.1]} 14. dxc5
{[%clk 0:01:50.9]} 14... bxc5 {[%clk 0:02:31.2]} 15. Bxd6 {[%clk 0:01:47.6]}
15... Qb6 {[%clk 0:02:30]} 16. Bxf8 {[%clk 0:01:46.6]} 16... Rxf8 {[%clk
0:02:28.8]} 17. Bxc6 {[%clk 0:01:46.3]} 17... Bxc6 {[%clk 0:02:27.8]} 18. O-O
{[%clk 0:01:46.9]} 18... Bb5 {[%clk 0:02:27.4]} 19. c4 {[%clk 0:01:45.9]} 19...
Bc6 {[%clk 0:02:27.5]} 20. b3 {[%clk 0:01:46.3]} 20... a5 {[%clk 0:02:26.2]} 21.
Ne5 {[%clk 0:01:46.7]} 21... Ba8 {[%clk 0:02:25.3]} 22. Nd7 {[%clk 0:01:46.9]}
22... Qb7 {[%clk 0:02:24.8]} 23. Nxf8 {[%clk 0:01:47.5]} 23... Qxg2# {[%clk
0:02:24.8]} 0-1

[Event "Late-Titled-Tuesday-Blitz-February-13-2024"]
[Site "Chess.com"]
[Date "2024.02.13"]
[Round "6"]
[White "Conejoviejo67"]
[Black "BabageldiAnnaberdiyev"]
[Result "1-0"]
[WhiteElo "2450"]
[BlackElo "2621"]
[TimeControl "180+1"]
[EndTime "15:03:30 PST"]
[Termination "Conejoviejo67 won by resignation"]

1. e4 {[%clk 0:03:00.9]} 1... e6 {[%clk 0:03:00.9]} 2. d3 {[%clk 0:02:59.4]}
2... d5 {[%clk 0:03:01.3]} 3. Nd2 {[%clk 0:02:59.2]} 3... Nf6 {[%clk 0:03:01.8]}
4. Ngf3 {[%clk 0:02:58.4]} 4... Nc6 {[%clk 0:03:02.4]} 5. g3 {[%clk 0:02:57.4]}
5... dxe4 {[%clk 0:03:02.9]} 6. dxe4 {[%clk 0:02:55.8]} 6... e5 {[%clk
0:03:03.4]} 7. Bg2 {[%clk 0:02:55.1]} 7... Bc5 {[%clk 0:03:04]} 8. h3 {[%clk
0:02:51.4]} 8... O-O {[%clk 0:03:04.2]} 9. c3 {[%clk 0:02:50.6]} 9... a5 {[%clk
0:03:02.6]} 10. O-O {[%clk 0:02:49.8]} 10... Qe7 {[%clk 0:03:03.2]} 11. Qe2
{[%clk 0:02:39.9]} 11... b6 {[%clk 0:03:02.6]} 12. Rd1 {[%clk 0:02:34.2]} 12...
Ba6 {[%clk 0:03:01.8]} 13. Qe1 {[%clk 0:02:34.1]} 13... Rfd8 {[%clk 0:03:02]}
14. Nh4 {[%clk 0:02:28]} 14... g6 {[%clk 0:03:00.1]} 15. Nb3 {[%clk 0:02:26.3]}
15... Bd6 {[%clk 0:02:56.6]} 16. Bg5 {[%clk 0:02:23.1]} 16... a4 {[%clk
0:02:57.1]} 17. Nd2 {[%clk 0:02:21.8]} 17... Bc5 {[%clk 0:02:56.9]} 18. Nf1
{[%clk 0:02:20]} 18... Qe6 {[%clk 0:02:50.9]} 19. Ne3 {[%clk 0:02:16.8]} 19...
Rxd1 {[%clk 0:02:44]} 20. Rxd1 {[%clk 0:02:12.9]} 20... Ne8 {[%clk 0:02:44.4]}
21. Nd5 {[%clk 0:02:10.9]} 21... Be2 {[%clk 0:02:39.7]} 22. Qxe2 {[%clk
0:02:06.5]} 22... f6 {[%clk 0:02:22]} 23. Be3 {[%clk 0:02:05.2]} 23... Bf8
{[%clk 0:02:20.2]} 24. Bf1 {[%clk 0:02:01.9]} 24... Kg7 {[%clk 0:02:20.1]} 25.
Qg4 {[%clk 0:01:58.2]} 25... Qf7 {[%clk 0:02:16.9]} 26. Bb5 {[%clk 0:01:51.7]}
26... Na5 {[%clk 0:02:16]} 27. Bf1 {[%clk 0:01:44.7]} 27... Bd6 {[%clk 0:02:13]}
28. Nf5+ {[%clk 0:01:42.2]} 28... Kh8 {[%clk 0:02:12.6]} 29. Nh6 {[%clk
0:01:38.5]} 29... Qg7 {[%clk 0:02:09.7]} 30. Qe6 {[%clk 0:01:34.4]} 1-0

[Event "Late-Titled-Tuesday-Blitz-February-13-2024"]
[Site "Chess.com"]
[Date "2024.02.13"]
[Round "6"]
[White "baki83"]
[Black "GianmarcoVaR"]
[Result "1-0"]
[WhiteElo "2863"]
[BlackElo "2723"]
[TimeControl "180+1"]
[EndTime "15:03:39 PST"]
[Termination "baki83 won by resignation"]

1. e4 {[%clk 0:03:00.9]} 1... c5 {[%clk 0:02:58.3]} 2. Nf3 {[%clk 0:03:01.5]}
2... d6 {[%clk 0:02:58.5]} 3. Bb5+ {[%clk 0:03:02.1]} 3... Nd7 {[%clk 0:02:58]}
4. O-O {[%clk 0:03:01.5]} 4... a6 {[%clk 0:02:55.9]} 5. Bd3 {[%clk 0:03:01.7]}
5... Ngf6 {[%clk 0:02:52]} 6. Re1 {[%clk 0:03:02.3]} 6... b5 {[%clk 0:02:48.7]}
7. c3 {[%clk 0:03:02.6]} 7... Bb7 {[%clk 0:02:45]} 8. Bc2 {[%clk 0:03:03.2]}
8... c4 {[%clk 0:02:43.4]} 9. a4 {[%clk 0:03:01.9]} 9... e6 {[%clk 0:02:41.6]}
10. Na3 {[%clk 0:03:02.4]} 10... Nc5 {[%clk 0:02:11.5]} 11. axb5 {[%clk
0:02:54.3]} 11... axb5 {[%clk 0:02:09.8]} 12. Nd4 {[%clk 0:02:54.9]} 12... Be7
{[%clk 0:01:50.9]} 13. Ndxb5 {[%clk 0:02:52.9]} 13... Nfxe4 {[%clk 0:01:37.7]}
14. d4 {[%clk 0:02:52.2]} 14... cxd3 {[%clk 0:01:35.5]} 15. Bxd3 {[%clk
0:02:52.8]} 15... O-O {[%clk 0:01:28.6]} 16. Bc2 {[%clk 0:02:50.5]} 16... d5
{[%clk 0:01:23.3]} 17. Be3 {[%clk 0:02:49.7]} 17... Bf6 {[%clk 0:01:19.4]} 18.
f3 {[%clk 0:02:44]} 18... Qe7 {[%clk 0:00:48.2]} 19. fxe4 {[%clk 0:02:43]} 19...
dxe4 {[%clk 0:00:48.8]} 20. Qd6 {[%clk 0:02:40.6]} 20... Rfd8 {[%clk 0:00:32.6]}
21. Qxc5 {[%clk 0:02:28.3]} 1-0